[Event "ONJK FGH 2"]
[Site "Enschede, Netherlands"]
[Date "2022.08.11"]
[Round "1.1"]
[White "Decraene, Eden"]
[Black "De Labaca, Julia"]
[Result "1-0"]
[TimeControl "25min + 10sec/move"]
[WhiteElo "600"]
[BlackElo "1114"]

1. e4 {[%clk 00:25:18]} e5 {[%clk 00:25:19]} {[%emt 00:00:02]} 2. Nf3 {[%clk
00:25:25]} {[%emt 00:00:03]} Nc6 {[%clk 00:25:27]} {[%emt 00:00:02]} 3. Bc4
{[%clk 00:25:31]} {[%emt 00:00:04]} Bc5 {[%clk 00:25:35]} {[%emt 00:00:02]} 4.
O-O {[%clk 00:25:29]} {[%emt 00:00:11]} Nf6 {[%clk 00:25:41]} {[%emt 00:00:05]}
5. Nc3 {[%clk 00:25:35]} {[%emt 00:00:03]} d6 {[%clk 00:25:48]} {[%emt
00:00:03]} 6. d3 {[%clk 00:25:40]} {[%emt 00:00:06]} h6 {[%clk 00:25:48]}
{[%emt 00:00:10]} 7. h3 {[%clk 00:25:42]} {[%emt 00:00:07]} g5 {[%clk
00:25:55]} {[%emt 00:00:03]} 8. Nd5 {[%clk 00:24:40]} {[%emt 00:01:13]} g4
{[%clk 00:25:59]} {[%emt 00:00:07]} 9. hxg4 {[%clk 00:24:42]} {[%emt 00:00:07]}
Bxg4 {[%clk 00:26:06]} {[%emt 00:00:03]} 10. b4 {[%clk 00:24:27]} {[%emt
00:00:26]} Bb6 {[%clk 00:26:03]} {[%emt 00:00:13]} 11. b5 {[%clk 00:24:11]}
{[%emt 00:00:26]} Nd4 {[%clk 00:26:00]} {[%emt 00:00:12]} 12. Be3 {[%clk
00:23:20]} {[%emt 00:01:01]} Nxd5 {[%clk 00:25:33]} {[%emt 00:00:37]} 13. Bxd4
{[%clk 00:23:07]} {[%emt 00:00:23]} Bxf3 {[%clk 00:25:18]} {[%emt 00:00:24]} 14.
Qxf3 {[%clk 00:23:09]} {[%emt 00:00:09]} Bxd4 {[%clk 00:24:54]} {[%emt
00:00:34]} 15. Bxd5 {[%clk 00:23:15]} {[%emt 00:00:03]} Qd7 {[%clk 00:24:45]}
{[%emt 00:00:15]} 16. Bxb7 {[%clk 00:23:15]} {[%emt 00:00:15]} Bxa1 {[%clk
00:24:15]} {[%emt 00:00:40]} 17. Bc6 {[%clk 00:23:13]} {[%emt 00:00:12]} Rd8
{[%clk 00:24:08]} {[%emt 00:00:18]} 18. Bxd7+ {[%clk 00:23:19]} {[%emt
00:00:03]} Rxd7 {[%clk 00:24:17]} {[%emt 00:00:02]} 19. Rxa1 {[%clk 00:23:24]}
{[%emt 00:00:03]} Re7 {[%clk 00:24:15]} {[%emt 00:00:12]} 20. c4 {[%clk
00:23:19]} {[%emt 00:00:16]} Re6 {[%clk 00:24:13]} {[%emt 00:00:12]} 21. Qe3
{[%clk 00:23:15]} {[%emt 00:00:14]} Rg6 {[%clk 00:24:00]} {[%emt 00:00:23]} 22.
Qxa7 {[%clk 00:23:17]} {[%emt 00:00:08]} Rhg8 {[%clk 00:24:00]} {[%emt
00:00:09]} 23. g3 {[%clk 00:23:06]} {[%emt 00:00:22]} Kd7 {[%clk 00:23:58]}
{[%emt 00:00:12]} 24. b6 {[%clk 00:23:07]} {[%emt 00:00:10]} h5 {[%clk
00:23:44]} {[%emt 00:00:24]} 25. Qxc7+ {[%clk 00:23:13]} {[%emt 00:00:02]} Ke6
{[%clk 00:23:46]} {[%emt 00:00:08]} 26. b7 {[%clk 00:23:17]} {[%emt 00:00:07]}
h4 {[%clk 00:23:51]} {[%emt 00:00:05]} 27. b8=Q {[%clk 00:22:55]} {[%emt
00:00:31]} Rxb8 {[%clk 00:23:44]} {[%emt 00:00:18]} 28. Qxb8 {[%clk 00:23:02]}
{[%emt 00:00:03]} hxg3 {[%clk 00:23:51]} {[%emt 00:00:04]} 29. Qc8+ {[%clk
00:23:07]} {[%emt 00:00:04]} Ke7 {[%clk 00:23:55]} {[%emt 00:00:06]} 30. Qc7+
{[%clk 00:23:07]} {[%emt 00:00:10]} Ke6 {[%clk 00:24:00]} {[%emt 00:00:05]} 31.
fxg3 {[%clk 00:23:09]} {[%emt 00:00:08]} Rxg3+ {[%clk 00:24:08]} {[%emt
00:00:02]} 32. Kf2 {[%clk 00:23:17]} {[%emt 00:00:02]} Rg6 {[%clk 00:24:13]}
{[%emt 00:00:04]} 33. Rg1 {[%clk 00:23:12]} {[%emt 00:00:16]} Rf6+ {[%clk
00:24:21]} {[%emt 00:00:03]} 34. Ke3 {[%clk 00:23:16]} {[%emt 00:00:05]} Rh6
{[%clk 00:24:10]} {[%emt 00:00:20]} 35. Rg7 {[%clk 00:23:20]} {[%emt 00:00:07]}
Rf6 {[%clk 00:24:15]} {[%emt 00:00:04]} 36. Rg8 {[%clk 00:23:02]} {[%emt
00:00:28]} Rh6 {[%clk 00:23:59]} {[%emt 00:00:27]} 37. Qc8+ {[%clk 00:23:07]}
{[%emt 00:00:06]} Kf6 {[%clk 00:24:01]} {[%emt 00:00:07]} 38. Qd8+ {[%clk
00:23:08]} {[%emt 00:00:09]} Ke6 {[%clk 00:23:59]} {[%emt 00:00:13]} 39. Re8#
{[%emt 00:00:41]} 1-0

[Event "ONJK FGH 2"]
[Site "Enschede, Netherlands"]
[Date "2022.08.11"]
[Round "1.2"]
[White "De Wit, Jim"]
[Black "Verwer, Cedric"]
[Result "0-1"]
[TimeControl "25min + 10sec/move"]
[WhiteElo "889"]
[BlackElo "552"]

1. e4 {[%clk 00:25:17]} {[%emt 00:00:02]} e5 {[%clk 00:25:19]} {[%emt
00:00:02]} 2. Nf3 {[%clk 00:25:23]} {[%emt 00:00:04]} Nc6 {[%clk 00:25:28]}
{[%emt 00:00:01]} 3. Bb5 {[%clk 00:25:25]} {[%emt 00:00:07]} a6 {[%clk
00:25:36]} {[%emt 00:00:02]} 4. Ba4 {[%clk 00:25:32]} {[%emt 00:00:03]} b5
{[%clk 00:25:44]} {[%emt 00:00:03]} 5. Bb3 {[%clk 00:25:40]} {[%emt 00:00:02]}
Nf6 {[%clk 00:25:51]} {[%emt 00:00:03]} 6. d3 {[%clk 00:25:19]} {[%emt
00:00:30]} Bd6 {[%clk 00:25:52]} {[%emt 00:00:10]} 7. O-O {[%clk 00:25:15]}
{[%emt 00:00:13]} O-O {[%clk 00:25:52]} {[%emt 00:00:10]} 8. Be3 {[%clk
00:25:06]} {[%emt 00:00:20]} a5 {[%clk 00:25:25]} {[%emt 00:00:37]} 9. Bd5
{[%clk 00:25:06]} {[%emt 00:00:09]} Nxd5 {[%clk 00:25:26]} {[%emt 00:00:09]} 10.
exd5 {[%clk 00:25:13]} {[%emt 00:00:04]} Nb4 {[%clk 00:25:31]} {[%emt
00:00:04]} 11. Nc3 {[%clk 00:25:15]} {[%emt 00:00:08]} c6 {[%clk 00:25:31]}
{[%emt 00:00:11]} 12. a3 {[%clk 00:24:56]} {[%emt 00:00:27]} Nxd5 {[%clk
00:25:33]} {[%emt 00:00:09]} 13. Nxd5 {[%clk 00:25:04]} {[%emt 00:00:03]} cxd5
{[%clk 00:25:41]} {[%emt 00:00:01]} 14. Re1 {[%clk 00:24:32]} {[%emt 00:00:37]}
Bb7 {[%clk 00:25:45]} {[%emt 00:00:11]} 15. Bc1 {[%clk 00:24:09]} {[%emt
00:00:33]} Re8 {[%clk 00:25:37]} {[%emt 00:00:19]} 16. Nd2 {[%clk 00:23:25]}
{[%emt 00:00:53]} a4 {[%clk 00:25:16]} {[%emt 00:00:31]} 17. b3 {[%clk
00:23:05]} {[%emt 00:00:29]} Qg5 {[%clk 00:25:10]} {[%emt 00:00:17]} 18. Nc4
{[%clk 00:22:40]} {[%emt 00:00:34]} Qg6 {[%clk 00:25:07]} {[%emt 00:00:14]} 19.
Nxd6 {[%clk 00:22:12]} {[%emt 00:00:38]} Qxd6 {[%clk 00:25:14]} {[%emt
00:00:03]} 20. Bb2 {[%clk 00:22:01]} {[%emt 00:00:21]} d4 {[%clk 00:25:17]}
{[%emt 00:00:07]} 21. b4 {[%clk 00:21:57]} {[%emt 00:00:13]} Rac8 {[%clk
00:24:59]} {[%emt 00:00:30]} 22. Qd2 {[%clk 00:20:35]} {[%emt 00:01:32]} Qc6
{[%clk 00:24:56]} {[%emt 00:00:13]} 23. f3 {[%clk 00:20:13]} {[%emt 00:00:32]}
Qxc2 {[%clk 00:24:48]} {[%emt 00:00:18]} 24. Qxc2 {[%clk 00:20:20]} {[%emt
00:00:02]} Rxc2 {[%clk 00:24:55]} {[%emt 00:00:02]} 25. Rab1 {[%clk 00:20:27]}
{[%emt 00:00:03]} d5 {[%clk 00:24:51]} {[%emt 00:00:15]} 26. f4 {[%clk
00:20:21]} {[%emt 00:00:16]} e4 {[%clk 00:25:00]} {[%emt 00:00:02]} 27. Bxd4
{[%clk 00:19:48]} {[%emt 00:00:42]} Rd2 {[%clk 00:25:03]} {[%emt 00:00:08]} 28.
Rbd1 {[%clk 00:19:03]} {[%emt 00:00:55]} Rxd1 {[%clk 00:25:02]} {[%emt
00:00:10]} 29. Rxd1 {[%emt 00:00:16]} e3 {[%clk 00:25:02]} 30. Re1 {[%clk
00:19:01]} {[%emt 00:00:15]} e2 {[%clk 00:25:06]} {[%emt 00:00:08]} 31. Kf2
{[%clk 00:19:04]} {[%emt 00:00:05]} Bc8 {[%clk 00:24:55]} {[%emt 00:00:23]} 32.
Rxe2 {[%clk 00:18:20]} {[%emt 00:00:54]} Rxe2+ {[%clk 00:25:03]} {[%emt
00:00:02]} 33. Kxe2 {[%clk 00:18:27]} {[%emt 00:00:03]} Bg4+ {[%clk 00:25:08]}
{[%emt 00:00:04]} 34. Ke3 {[%clk 00:18:26]} {[%emt 00:00:09]} f6 {[%clk
00:25:13]} {[%emt 00:00:07]} 35. g3 {[%clk 00:18:04]} {[%emt 00:00:30]} h5
{[%emt 00:01:25]} 36. Bc5 {[%clk 00:16:44]} {[%emt 00:00:15]} Kf7 {[%clk
00:25:20]} {[%emt 00:00:06]} 37. d4 {[%clk 00:15:58]} {[%emt 00:00:55]} Ke6
{[%clk 00:25:21]} {[%emt 00:00:10]} 38. h4 {[%clk 00:14:51]} {[%emt 00:01:16]}
g6 {[%clk 00:25:13]} {[%emt 00:00:18]} 39. Ba7 {[%clk 00:14:23]} {[%emt
00:00:37]} Kf5 {[%clk 00:25:20]} {[%emt 00:00:04]} 40. Bc5 {[%clk 00:13:59]}
{[%emt 00:00:33]} Bh3 {[%clk 00:25:23]} {[%emt 00:00:08]} 41. Kf3 {[%clk
00:13:34]} {[%emt 00:00:35]} Bg4+ {[%clk 00:25:15]} {[%emt 00:00:18]} 42. Kf2
{[%clk 00:13:36]} {[%emt 00:00:06]} Ke4 {[%clk 00:25:22]} {[%emt 00:00:05]} 43.
Ke1 {[%clk 00:12:10]} {[%emt 00:01:35]} f5 {[%clk 00:25:25]} {[%emt 00:00:07]}
44. Bb6 {[%clk 00:11:30]} {[%emt 00:00:51]} Kd3 {[%clk 00:25:31]} {[%emt
00:00:04]} 45. Kd1 {[%clk 00:11:29]} {[%emt 00:00:10]} Kc3+ {[%clk 00:25:40]}
{[%emt 00:00:02]} 46. Ke1 {[%clk 00:11:12]} {[%emt 00:00:07]} Kb3 {[%clk
00:25:49]} {[%emt 00:00:21]} 47. Bc5 {[%clk 00:11:20]} Kxa3 {[%clk 00:25:57]}
{[%emt 00:00:03]} 48. Kd2 {[%clk 00:11:17]} Ka2 {[%clk 00:26:06]} {[%emt
00:00:15]} 49. Kc2 {[%clk 00:10:31]} a3 {[%clk 00:26:13]} {[%emt 00:00:59]} 50.
Bb6 {[%clk 00:10:02]} {[%emt 00:00:50]} Bf3 {[%clk 00:26:29]} 51. Kc1 {[%clk
00:10:06]} {[%emt 00:00:09]} Be4 {[%clk 00:26:35]} 52. Bc5 {[%clk 00:10:05]}
{[%emt 00:00:14]} Kb3 {[%clk 00:26:44]} 0-1

[Event "ONJK FGH 2"]
[Site "Enschede, Netherlands"]
[Date "2022.08.11"]
[Round "1.3"]
[White "Oei, Jack"]
[Black "Okita, Ryoga"]
[Result "0-1"]
[TimeControl "25min + 10sec/move"]
[WhiteElo "506"]
[BlackElo "829"]

1. e4 {[%clk 00:25:18]} e5 {[%clk 00:25:20]} 2. Nf3 {[%clk 00:25:26]} {[%emt
00:00:03]} Nc6 {[%clk 00:25:30]} 3. Bc4 {[%clk 00:25:34]} {[%emt 00:00:02]} Bc5
{[%clk 00:25:38]} {[%emt 00:00:01]} 4. O-O {[%clk 00:25:41]} {[%emt 00:00:04]}
d6 {[%clk 00:25:40]} {[%emt 00:00:08]} 5. d3 {[%clk 00:25:45]} {[%emt
00:00:06]} h6 {[%clk 00:25:45]} {[%emt 00:00:04]} 6. Nc3 {[%clk 00:25:53]}
{[%emt 00:00:03]} Bg4 {[%clk 00:25:53]} {[%emt 00:00:02]} 7. Bd2 {[%clk
00:25:40]} {[%emt 00:00:23]} Nd4 {[%clk 00:26:01]} {[%emt 00:00:02]} 8. Be3
{[%clk 00:25:41]} {[%emt 00:00:09]} Nxf3+ {[%clk 00:26:04]} {[%emt 00:00:07]} 9.
gxf3 {[%clk 00:25:48]} {[%emt 00:00:03]} Bh3 {[%clk 00:26:13]} 10. Re1 {[%emt
00:00:38]} Bxe3 {[%clk 00:26:21]} {[%emt 00:00:01]} 11. Kh1 {[%clk 00:24:47]}
{[%emt 00:00:43]} Bxf2 {[%clk 00:26:22]} {[%emt 00:00:08]} 12. Rg1 {[%clk
00:24:30]} {[%emt 00:00:29]} Bxg1 {[%clk 00:26:26]} {[%emt 00:00:06]} 13. Qxg1
{[%clk 00:24:38]} {[%emt 00:00:02]} Qg5 {[%clk 00:26:30]} {[%emt 00:00:06]} 14.
Qxg5 {[%clk 00:24:43]} {[%emt 00:00:05]} hxg5 {[%clk 00:26:40]} 15. Rg1 {[%clk
00:24:47]} {[%emt 00:00:07]} O-O-O {[%clk 00:26:35]} {[%emt 00:00:15]} 16. Bxf7
{[%clk 00:24:50]} {[%emt 00:00:07]} Nf6 {[%clk 00:26:45]} 17. Nb5 {[%clk
00:24:51]} {[%emt 00:00:08]} g4 {[%clk 00:26:49]} {[%emt 00:00:06]} 18. Nxa7+
{[%clk 00:24:54]} {[%emt 00:00:07]} Kb8 {[%clk 00:26:58]} 19. Nb5 {[%clk
00:25:01]} {[%emt 00:00:03]} gxf3 {[%clk 00:27:06]} {[%emt 00:00:02]} 20. Nc3
{[%clk 00:25:00]} {[%emt 00:00:11]} Bg2+ {[%clk 00:27:15]} {[%emt 00:00:01]} 21.
Rxg2 fxg2+ {[%clk 00:27:23]} 22. Kxg2 {[%clk 00:25:15]} {[%emt 00:00:02]} Ng4
{[%clk 00:27:27]} {[%emt 00:00:05]} 23. Nd5 {[%clk 00:25:11]} {[%emt 00:00:15]}
Nxh2 {[%clk 00:27:31]} {[%emt 00:00:07]} 24. Ne7 {[%clk 00:24:33]} {[%emt
00:00:47]} Rd7 {[%clk 00:27:35]} {[%emt 00:00:06]} 25. Be6 {[%clk 00:24:25]}
{[%emt 00:00:18]} Rxe7 {[%clk 00:27:42]} {[%emt 00:00:03]} 26. Bf5 {[%clk
00:24:28]} {[%emt 00:00:07]} Rf7 {[%clk 00:27:46]} {[%emt 00:00:06]} 27. Be6
{[%clk 00:24:34]} {[%emt 00:00:04]} Rf6 {[%clk 00:27:55]} {[%emt 00:00:02]} 28.
Bc4 {[%clk 00:24:41]} {[%emt 00:00:03]} Ng4 {[%clk 00:28:02]} {[%emt 00:00:03]}
29. Kg3 {[%clk 00:24:44]} {[%emt 00:00:06]} Rf2 {[%clk 00:28:03]} {[%emt
00:00:08]} 30. Kxg4 {[%clk 00:24:42]} {[%emt 00:00:13]} Rxc2 {[%clk 00:28:11]}
{[%emt 00:00:02]} 31. b4 {[%clk 00:24:42]} {[%emt 00:00:10]} Rxc4 {[%clk
00:28:19]} {[%emt 00:00:02]} 32. dxc4 {[%clk 00:24:50]} {[%emt 00:00:02]} Rh2
{[%clk 00:28:26]} {[%emt 00:00:03]} 33. Kg3 {[%clk 00:24:56]} {[%emt 00:00:04]}
Rxa2 {[%clk 00:28:34]} {[%emt 00:00:03]} 34. Kf3 {[%clk 00:25:04]} {[%emt
00:00:02]} Ra4 {[%clk 00:28:43]} 35. b5 {[%clk 00:25:12]} {[%emt 00:00:02]}
Rxc4 {[%clk 00:28:52]} 36. Ke3 {[%clk 00:25:20]} Rb4 {[%clk 00:29:01]} {[%emt
00:00:02]} 37. Kf3 {[%clk 00:25:28]} {[%emt 00:00:03]} Rxb5 {[%clk 00:29:09]}
{[%emt 00:00:02]} 38. Kg4 {[%clk 00:25:37]} Rb4 {[%clk 00:29:17]} {[%emt
00:00:03]} 39. Kf5 {[%clk 00:25:45]} Rxe4 {[%clk 00:29:25]} {[%emt 00:00:02]}
40. Kxe4 {[%clk 00:25:54]} {[%emt 00:00:01]} b5 {[%clk 00:29:34]} 41. Kd3
{[%clk 00:26:02]} {[%emt 00:00:02]} g5 {[%clk 00:29:44]} 42. Kc3 {[%clk
00:26:09]} {[%emt 00:00:02]} g4 {[%clk 00:29:53]} {[%emt 00:00:01]} 43. Kd3
{[%clk 00:26:19]} b4 {[%clk 00:30:02]} {[%emt 00:00:01]} 44. Ke3 {[%clk
00:26:27]} {[%emt 00:00:02]} b3 {[%clk 00:30:11]} 45. Kd2 {[%clk 00:26:36]}
{[%emt 00:00:01]} g3 {[%clk 00:30:20]} 46. Kc3 {[%clk 00:26:45]} {[%emt
00:00:02]} g2 {[%clk 00:30:29]} {[%emt 00:00:01]} 47. Kxb3 {[%clk 00:26:53]}
g1=Q {[%clk 00:30:38]} {[%emt 00:00:02]} 48. Kc4 {[%clk 00:26:59]} {[%emt
00:00:03]} Qc5+ {[%clk 00:30:47]} {[%emt 00:00:02]} 49. Kd3 {[%clk 00:27:08]}
Qd4+ {[%clk 00:30:56]} 50. Kc2 {[%clk 00:27:17]} Qe3 {[%emt 00:00:02]} 51. Kb2
{[%clk 00:27:25]} Qd3 {[%clk 00:31:13]} 52. Kc1 {[%clk 00:27:34]} {[%emt
00:00:02]} Qe2 {[%clk 00:31:22]} 53. Kb1 {[%clk 00:27:42]} {[%emt 00:00:02]} d5
{[%clk 00:31:32]} 54. Kc1 {[%clk 00:27:50]} {[%emt 00:00:02]} d4 {[%clk
00:31:41]} 55. Kb1 {[%clk 00:27:59]} {[%emt 00:00:01]} d3 {[%clk 00:31:51]} 56.
Kc1 {[%clk 00:28:09]} d2+ {[%clk 00:32:00]} 57. Kb1 {[%clk 00:28:18]} d1=R#
{[%emt 00:00:25]} 0-1

[Event "ONJK FGH 2"]
[Site "Enschede, Netherlands"]
[Date "2022.08.11"]
[Round "2.1"]
[White "Okita, Ryoga"]
[Black "Zhang, Melody"]
[Result "0-1"]
[TimeControl "25min + 10sec/move"]
[WhiteElo "829"]
[BlackElo "667"]

1. e4 {[%clk 00:25:19]} e5 {[%clk 00:25:19]} 2. Nf3 {[%clk 00:25:29]} {[%emt
00:00:01]} Nc6 {[%clk 00:25:28]} {[%emt 00:00:01]} 3. Bc4 {[%clk 00:25:38]} Bc5
{[%clk 00:25:37]} {[%emt 00:00:02]} 4. d3 {[%clk 00:25:47]} Nf6 {[%clk
00:25:39]} {[%emt 00:00:08]} 5. Bg5 {[%clk 00:25:56]} O-O {[%clk 00:25:45]}
{[%emt 00:00:04]} 6. Nc3 {[%clk 00:26:05]} d6 {[%clk 00:25:50]} {[%emt
00:00:05]} 7. h3 {[%clk 00:26:14]} {[%emt 00:00:01]} h6 {[%clk 00:25:58]}
{[%emt 00:00:02]} 8. Bh4 {[%clk 00:26:23]} Be6 {[%clk 00:26:03]} {[%emt
00:00:06]} 9. Bd5 {[%clk 00:26:32]} {[%emt 00:00:02]} Bd7 {[%clk 00:25:57]}
{[%emt 00:00:16]} 10. Bc4 {[%clk 00:26:40]} {[%emt 00:00:02]} Bb4 {[%clk
00:25:45]} {[%emt 00:00:21]} 11. O-O {[%clk 00:26:45]} {[%emt 00:00:06]} Be6
{[%clk 00:25:32]} {[%emt 00:00:22]} 12. Nd5 {[%clk 00:26:46]} {[%emt 00:00:08]}
Bxd5 {[%clk 00:25:16]} {[%emt 00:00:26]} 13. Bxd5 {[%clk 00:26:55]} {[%emt
00:00:03]} a5 {[%clk 00:24:28]} {[%emt 00:00:57]} 14. c3 {[%emt 00:00:15]} Bc5
{[%clk 00:24:34]} {[%emt 00:00:02]} 15. d4 {[%clk 00:26:55]} {[%emt 00:00:08]}
Bb6 {[%clk 00:24:39]} {[%emt 00:00:05]} 16. Bxf6 {[%clk 00:26:55]} {[%emt
00:00:09]} Qxf6 {[%clk 00:24:45]} {[%emt 00:00:04]} 17. dxe5 {[%clk 00:27:04]}
dxe5 {[%clk 00:24:51]} {[%emt 00:00:03]} 18. Bc4 {[%clk 00:27:03]} {[%emt
00:00:12]} Rad8 {[%clk 00:24:45]} {[%emt 00:00:16]} 19. Qc2 {[%clk 00:26:58]}
{[%emt 00:00:16]} Ne7 {[%clk 00:24:02]} {[%emt 00:00:51]} 20. Rfd1 {[%clk
00:27:01]} {[%emt 00:00:08]} Nc6 {[%clk 00:23:42]} {[%emt 00:00:30]} 21. Nh2
{[%clk 00:27:04]} {[%emt 00:00:07]} Rxd1+ {[%clk 00:23:31]} {[%emt 00:00:21]}
22. Rxd1 {[%clk 00:27:13]} {[%emt 00:00:02]} Rd8 {[%clk 00:23:28]} {[%emt
00:00:11]} 23. Ng4 {[%clk 00:27:15]} {[%emt 00:00:09]} Rxd1+ {[%clk 00:23:28]}
{[%emt 00:00:09]} 24. Qxd1 {[%clk 00:27:24]} {[%emt 00:00:02]} Qf4 {[%clk
00:23:28]} {[%emt 00:00:05]} 25. g3 {[%clk 00:27:12]} {[%emt 00:00:27]} Qxe4
{[%clk 00:23:26]} {[%emt 00:00:09]} 26. Qd7 {[%clk 00:27:08]} {[%emt 00:00:17]}
Qxc4 {[%clk 00:23:19]} {[%emt 00:00:18]} 27. Qc8+ {[%clk 00:26:47]} {[%emt
00:00:30]} Kh7 {[%clk 00:23:19]} {[%emt 00:00:10]} 28. Qxb7 {[%clk 00:26:56]}
{[%emt 00:00:01]} Qe4 {[%clk 00:22:49]} {[%emt 00:00:38]} 29. b4 {[%clk
00:26:45]} {[%emt 00:00:23]} axb4 {[%clk 00:22:12]} {[%emt 00:00:47]} 30. cxb4
{[%clk 00:26:54]} {[%emt 00:00:01]} Qe1+ {[%clk 00:22:17]} {[%emt 00:00:04]} 31.
Kh2 {[%clk 00:27:02]} {[%emt 00:00:02]} Nxb4 {[%emt 00:00:04]} 32. a3 {[%clk
00:27:03]} {[%emt 00:00:08]} Nd3 {[%clk 00:22:30]} {[%emt 00:00:05]} 33. Kg2
{[%clk 00:26:58]} {[%emt 00:00:15]} Nxf2 {[%clk 00:22:07]} {[%emt 00:00:33]} 34.
Nxf2 {[%clk 00:27:03]} {[%emt 00:00:06]} Qxf2+ {[%clk 00:22:09]} {[%emt
00:00:06]} 35. Kh1 {[%clk 00:27:06]} Qg1# {[%clk 00:22:05]} {[%emt 00:00:12]}
0-1

[Event "ONJK FGH 2"]
[Site "Enschede, Netherlands"]
[Date "2022.08.11"]
[Round "2.2"]
[White "Verbaken, Ilja"]
[Black "Georgopoulos-Karbouniaris"]
[Result "0-1"]
[TimeControl "25min + 10sec/move"]
[WhiteElo "660"]
[BlackElo "787"]

1. e4 {[%clk 00:25:13]} {[%emt 00:00:04]} e5 {[%clk 00:25:19]} {[%emt
00:00:05]} 2. Bc4 {[%clk 00:25:17]} {[%emt 00:00:06]} Nc6 {[%clk 00:25:18]}
{[%emt 00:00:11]} 3. Nf3 {[%clk 00:25:11]} {[%emt 00:00:15]} d6 {[%clk
00:25:21]} {[%emt 00:00:07]} 4. O-O {[%clk 00:24:52]} {[%emt 00:00:25]} Bg4
{[%clk 00:25:28]} {[%emt 00:00:06]} 5. h3 {[%clk 00:24:53]} {[%emt 00:00:10]}
Bh5 {[%clk 00:25:35]} {[%emt 00:00:03]} 6. Nc3 {[%clk 00:24:39]} {[%emt
00:00:24]} Nf6 {[%clk 00:25:43]} {[%emt 00:00:03]} 7. d3 {[%clk 00:24:18]}
{[%emt 00:00:28]} h6 {[%clk 00:25:52]} {[%emt 00:00:04]} 8. d4 {[%emt
00:00:34]} exd4 {[%emt 00:00:08]} 9. Nxd4 {[%clk 00:23:41]} {[%emt 00:00:02]}
Bxd1 {[%clk 00:25:59]} {[%emt 00:00:06]} 10. Rxd1 {[%clk 00:23:45]} {[%emt
00:00:05]} Be7 {[%clk 00:26:00]} {[%emt 00:00:10]} 11. Nxc6 {[%clk 00:23:53]}
{[%emt 00:00:03]} bxc6 {[%clk 00:26:09]} {[%emt 00:00:01]} 12. e5 {[%emt
00:00:10]} Nd5 {[%emt 00:00:27]} 13. Bxd5 {[%clk 00:23:19]} {[%emt 00:00:07]}
cxd5 {[%clk 00:26:14]} {[%emt 00:00:05]} 14. Rxd5 {[%clk 00:23:26]} {[%emt
00:00:02]} c6 {[%emt 00:00:06]} 15. Rd2 O-O {[%clk 00:26:18]} 16. b3 {[%clk
00:23:08]} d5 {[%clk 00:26:21]} {[%emt 00:00:35]} 17. Bb2 {[%emt 00:00:23]} Bg5
{[%clk 00:26:18]} {[%emt 00:00:08]} 18. Rd3 {[%clk 00:22:49]} {[%emt 00:00:20]}
d4 {[%clk 00:25:57]} {[%emt 00:00:32]} 19. Ne2 {[%clk 00:22:48]} {[%emt
00:00:11]} c5 {[%clk 00:25:38]} {[%emt 00:00:29]} 20. b4 {[%clk 00:22:29]}
{[%emt 00:00:21]} Qb8 {[%clk 00:25:15]} {[%emt 00:00:40]} 21. a3 {[%clk
00:22:27]} {[%emt 00:00:13]} Qxe5 {[%clk 00:25:12]} {[%emt 00:00:12]} 22. bxc5
{[%clk 00:22:29]} {[%emt 00:00:09]} Qxe2 {[%clk 00:25:13]} {[%emt 00:00:09]} 23.
Rxd4 {[%clk 00:22:31]} {[%emt 00:00:06]} Qxc2 {[%clk 00:25:10]} {[%emt
00:00:16]} 24. Ra2 {[%clk 00:22:09]} {[%emt 00:00:29]} Qb1+ {[%clk 00:25:12]}
{[%emt 00:00:10]} 25. Kh2 {[%clk 00:22:09]} {[%emt 00:00:11]} Qxa2 {[%clk
00:25:17]} {[%emt 00:00:05]} 26. Rb4 {[%clk 00:21:48]} {[%emt 00:00:25]} Rab8
{[%clk 00:25:14]} {[%emt 00:00:18]} 27. Rxb8 {[%clk 00:21:44]} {[%emt
00:00:10]} Rxb8 {[%clk 00:25:21]} {[%emt 00:00:07]} 28. Be5 {[%clk 00:21:43]}
{[%emt 00:00:10]} Qxf2 {[%clk 00:25:18]} {[%emt 00:00:14]} 29. Bxb8 {[%clk
00:21:50]} {[%emt 00:00:03]} Bf4+ {[%clk 00:25:13]} {[%emt 00:00:14]} 30. Bxf4
{[%clk 00:21:56]} {[%emt 00:00:06]} Qxf4+ {[%clk 00:25:21]} {[%emt 00:00:01]}
31. g3 {[%emt 00:00:03]} Qf2+ {[%emt 00:00:02]} 32. Kh1 {[%emt 00:00:03]} Qxc5
{[%emt 00:00:05]} 33. Kh2 {[%emt 00:00:06]} f5 {[%emt 00:00:04]} 34. a4 {[%clk
00:21:40]} g5 {[%clk 00:25:30]} {[%emt 00:00:04]} 35. a5 {[%clk 00:21:48]}
{[%emt 00:00:02]} f4 {[%clk 00:25:37]} {[%emt 00:00:03]} 36. gxf4 {[%clk
00:21:52]} {[%emt 00:00:02]} gxf4 {[%clk 00:25:46]} {[%emt 00:00:06]} 37. h4
{[%clk 00:21:57]} {[%emt 00:00:05]} f3 {[%clk 00:25:51]} {[%emt 00:00:05]} 38.
Kh3 {[%clk 00:21:57]} {[%emt 00:00:09]} f2 {[%clk 00:25:54]} {[%emt 00:00:07]}
39. Kg2 {[%clk 00:21:58]} {[%emt 00:00:06]} Qe3 {[%clk 00:25:59]} {[%emt
00:00:08]} 40. h5 {[%clk 00:21:51]} {[%emt 00:00:15]} Qe1 {[%clk 00:26:04]}
{[%emt 00:00:07]} 0-1